Cogmind - Beta 12 @@@ ROGUE MODE // 2023.09.29 @ 14:52:27 Player: Zirov Result: Self-destructed Performance ------------- Evolutions (2) 1000 Regions Visited (6) 1200 Robots Destroyed (73) 365 Value Destroyed (1629) 1629 Prototype IDs (29) 580 Alien Tech Used (0) 0 Bonus (311) 311 TOTAL SCORE: 5085 Bonus ------- High Alert Combat Kills 11 Aligned with FarCom 300 Cogmind --------- Core Integrity 433/550 Matter 289/300 Energy 265/265 System Corruption 0% Temperature Cool (0) Movement Treading (155) Location -8/Materials Parts ------- > --- POWER (1) -------- Improved Ion Engine > --- PROPULSION (3) --- Light Treads Light Treads Advanced Treads > --- UTILITY (3) ------ Large Storage Unit Targeting Computer Medium Armor Plating > --- WEAPON (4) ------- Light Assault Rifle Light Assault Rifle Light Assault Rifle Improved Assault Rifle > --- INVENTORY (15) --- Ion Engine Light Treads Light Treads Titanium Leg Heat Sink Superbattery (1500) High-capacity Matter Pod (200) Propulsion Shielding Light Armor Plating Hacking Suite Long-range Tractor Beam Light Assault Rifle Autogun Mini Grenade Launcher Hammer Peak State ------------ > --- POWER ------------ Improved Ion Engine > --- PROPULSION ------- Light Treads Light Treads Light Treads > --- UTILITY ---------- Large Storage Unit Targeting Computer Medium Armor Plating > --- WEAPON ----------- Light Assault Rifle Light Assault Rifle Improved Assault Rifle Improved Assault Rifle > --- INVENTORY -------- Ion Engine Light Treads Light Treads Titanium Leg Heat Sink Superbattery High-capacity Matter Pod Propulsion Shielding Light Armor Plating Hacking Suite Long-range Tractor Beam Light Assault Rifle Light Assault Rifle Mini Grenade Launcher Hammer [Rating: 20] Favorites ----------- Power Improved Ion Engine Engine Improved Ion Engine Propulsion Light Treads Treads Light Treads Utility Large Storage Unit Storage Large Storage Unit Processor Salvage Targeting Computer Protection Light Armor Plating Weapon Improved Assault Rifle Energy Gun Small Laser Ballistic Gun Improved Assault Rifle Ballistic Cannon Improved Light Cannon Launcher Grenade Launcher Build | -11 -10 -9 -9 -9 -8 -8 ------- Run | Jun Mat Mat Min Exi Min Mat Slots Evolved 4 | . . 2 . . . 2 Power . | . . . . . . . Propulsion 1 | . . . . . . 1 Utility 1 | . . . . . . 1 Weapon 2 | . . 2 . . . . Parts Attached 53 | 6 11 26 . . . 10 Power 5 | 1 1 3 . . . . Engine 5 | 1 1 3 . . . . Core . | . . . . . . . Reactor . | . . . . . . . Propulsion 14 | 2 3 6 . . . 3 Treads 14 | 2 3 6 . . . 3 Leg . | . . . . . . . Wheel . | . . . . . . . Hover . | . . . . . . . Flight . | . . . . . . . Utility 13 | 1 4 6 . . . 2 Device . | . . . . . . . Storage 2 | 1 1 . . . . . Processor 3 | . 2 . . . . 1 Hackware . | . . . . . . . Protection 8 | . 1 6 . . . 1 Artifact . | . . . . . . . Weapon 21 | 2 3 11 . . . 5 Energy Gun 1 | 1 . . . . . . Energy Cannon . | . . . . . . . Ballistic Gun 17 | 1 . 11 . . . 5 Ballistic Cannon 2 | . 2 . . . . . Launcher 1 | . 1 . . . . . Special Weapon . | . . . . . . . Impact Weapon . | . . . . . . . Slashing Weapon . | . . . . . . . Piercing Weapon . | . . . . . . . Special Melee Weapon . | . . . . . . . Unidentified Prototypes . | . . . . . . . Parts Lost 3 | . . 2 . . . 1 Power . | . . . . . . . Propulsion . | . . . . . . . Utility 2 | . . 2 . . . . Weapon 1 | . . . . . . 1 Highest Loss Streak 1 | . . 1 . . . 1 To Critical Strikes . | . . . . . . . Average Slot Usage (%) 99 | . 98 99 100 100 100 99 Engine 11 | . 14 11 11 11 11 9 Treads 23 | . 27 22 22 22 22 27 Storage 8 | . 1 11 11 11 11 9 Processor 6 | . 23 . . . . 8 Protection 8 | . 1 10 11 11 11 9 Ballistic Gun 32 | . . 43 44 44 44 36 Ballistic Cannon 4 | . 19 . . . . . Launcher 1 | . 8 . . . . . Naked Turns . | . . . . . . . Heaviest Build 42 | 11 33 40 38 38 38 42 Greatest Support 62 | 40 40 40 40 40 40 62 Greatest Overweight (x) . | . . . . . . . Average Overweight (x) . | . . . . . . . Largest Inventory Capacity 15 | 8 15 15 15 15 15 15 Average Capacity 12 | 6 6 15 15 15 15 15 Most Carried 15 | 2 10 15 15 15 15 15 Average Carried 12 | . 5 14 14 14 15 14 Final Capacity 15 | 8 15 15 15 15 15 15 Final Carried 15 | 2 10 14 15 15 15 15 Class Distribution -------------------- 31% | Tank 27% | Scavenger-Tank 23% | Mutant 17% | Scavenger-Skirmisher Dominant Class ---------------- Mutant | -10/Materials Tank | -9/Materials Scavenger-Tank | -9/Mines Scavenger-Tank | -9/Exiles Scavenger-Skirmisher | -8/Mines Scavenger-Skirmisher | -8/Materials Resources | -11 -10 -9 -9 -9 -8 -8 ----------- Run | Jun Mat Mat Min Exi Min Mat Matter Collected 1963 | 232 468 963 46 . . 254 Remotely . | . . . . . . . Salvage Created 2077 | . 473 1308 . . . 296 Parts 160 | . 33 96 . . . 31 Haulers Intercepted 7 | . 2 4 . . . 1 Recyclers Shooed 1 | . . 1 . . . . Parts Field Recycled . | . . . . . . . Retrieved Matter . | . . . . . . . Parts Self-Destructed . | . . . . . . . Prevented . | . . . . . . . Kills | -11 -10 -9 -9 -9 -8 -8 ------- Run | Jun Mat Mat Min Exi Min Mat Combat Hostiles Destroyed 53 | . 17 26 . . . 10 Guns 35 | . . 26 . . . 9 Cannons 11 | . 11 . . . . . AOE 7 | . 6 . . . . 1 Classes Destroyed 10 | . 5 5 . . . . Worker 3 | . . 3 . . . . Hauler 7 | . 2 4 . . . 1 Recycler 2 | . 1 1 . . . . Operator 1 | . . 1 . . . . Watcher 7 | . 3 2 . . . 2 Swarmer 22 | . 6 7 . . . 9 Grunt 19 | . 11 8 . . . . Brawler 1 | . . 1 . . . . Duelist 2 | . . 2 . . . . Sentry 9 | . . 8 . . . 1 Best Kill Streak 5 | . 4 5 . . . 4 Combat Bots Only 4 | . 4 4 . . . 4 Max Kills in Single Turn 2 | . 2 2 . . . 2 Gunslinging 1 | . . 1 . . . 1 Exploded 2 | . 2 . . . . 1 Melee . | . . . . . . . Uniques/NPCs Destroyed . | . . . . . . . Combat | -11 -10 -9 -9 -9 -8 -8 -------- Run | Jun Mat Mat Min Exi Min Mat Damage Taken 1725 | . 391 915 . . . 419 Core 255 | . 73 65 . . . 117 Absorbed by Shields . | . . . . . . . Redirected to Shielding 8 | . . 8 . . . . Regen/Repaired (Parts) 104 | . 104 . . . . . Core Remaining (%) 84 | 100 70 . . . 83 . Volleys Fired 131 | . 50 57 . . . 24 Largest 4 | . 2 4 . . . 4 Hottest 89 | . 78 89 . . . 86 Shots Fired 397 | . 72 229 . . . 96 Gun 325 | . . 229 . . . 96 Cannon 65 | . 65 . . . . . Launcher 7 | . 7 . . . . . Special . | . . . . . . . Kinetic 390 | . 65 229 . . . 96 Thermal . | . . . . . . . Explosive 7 | . 7 . . . . . Electromagnetic . | . . . . . . . Robot Hit Streak 21 | . 21 17 . . . 20 Robot Miss Streak 4 | . 4 4 . . . 4 Penetration Max . | . . . . . . . Secondary Targets 7 | . . 4 . . . 3 Max Gunslinging Chain 2 | . . 1 . . . 2 Shots Hit Robots 268 | . 51 153 . . . 64 Core Hits 111 | . 24 65 . . . 22 Critical Kills 1 | . . 1 . . . . Critical Parts Destroyed 1 | . . 1 . . . . Critical Strikes 6 | . 4 2 . . . . Destroy 2 | . . 2 . . . . Blast 4 | . 4 . . . . . Melee Attacks . | . . . . . . . Impact . | . . . . . . . Slashing . | . . . . . . . Piercing . | . . . . . . . Sneak Attacks . | . . . . . . . Combat Hostiles . | . . . . . . . Follow-up Attacks . | . . . . . . . Damage Inflicted 4606 | . 1462 2453 12 . . 679 Guns 2789 | . . 2121 . . . 668 Cannons 1024 | . 1024 . . . . . Explosions 756 | . 429 327 . . . . Melee . | . . . . . . . Ramming 37 | . 9 5 12 . . 11 Kinetic 3813 | . 1024 2121 . . . 668 Thermal 327 | . . 327 . . . . Explosive 379 | . 379 . . . . . Electromagnetic 50 | . 50 . . . . . Impact . | . . . . . . . Slashing . | . . . . . . . Piercing . | . . . . . . . Highest Corruption 1 | . . 1 1 1 1 . Average Corruption 1 | . . 1 1 1 1 . Corruption Purged . | . . . . . . . Corruption Blocked . | . . . . . . . Effects 18 | . . 12 4 2 . . Message Errors 5 | . . 3 2 . . . Matter Fused 4 | . . 2 1 1 . . Heat Flow Errors 1 | . . 1 . . . . Energy Discharges 4 | . . 2 1 1 . . Parts Fused 1 | . . 1 . . . . Data Loss (minor) 2 | . . 2 . . . . Misfires 1 | . . 1 . . . . Overload Shots . | . . . . . . . Overflow Damage 82 | . 56 26 . . . . Projectiles . | . . . . . . . Explosions 82 | . 56 26 . . . . Melee . | . . . . . . . Knockbacks 6 | . 6 . . . . . Impact . | . . . . . . . Kinetic 6 | . 6 . . . . . Secondary . | . . . . . . . Self-Inflicted Damage 209 | . 16 193 . . . . Shots 4 | . 2 2 . . . . Rammed 8 | . 1 1 4 . . 2 Targets Rammed 8 | . 1 1 4 . . 2 Kicked . | . . . . . . . Crushed . | . . . . . . . Highest Temperature 301 | . 270 301 . . . 108 Average Temperature 67 | . 68 76 . . . 40 Received Heat Transfer 522 | . 183 285 . . . 54 Effects 2 | . . 2 . . . . Interference 2 | . . 2 . . . . Siege Activations . | . . . . . . . Robots Corrupted . | . . . . . . . Combat Hostiles . | . . . . . . . Parts Fried . | . . . . . . . Impact Corruptions . | . . . . . . . Robots Melted . | . . . . . . . Combat Hostiles . | . . . . . . . Parts Melted . | . . . . . . . Heat Transferred 250 | . . 250 . . . . Parts Sabotaged . | . . . . . . . Parts Stolen . | . . . . . . . Parts Stripped . | . . . . . . . Power Chain Reactions . | . . . . . . . Missiles Intercepted . | . . . . . . . Alert | -11 -10 -9 -9 -9 -8 -8 ------- Run | Jun Mat Mat Min Exi Min Mat Peak Influence 413 | . 375 413 160 . . 157 Initial 160 | . . 121 160 . . . Average 150 | . 179 228 74 . . 71 Maximum Alert Level 2 | . 1 2 . . . . Low Security (%) 67 | 100 58 36 100 . 100 100 Level 1 30 | . 41 58 . . . . Level 2 2 | . . 5 . . . . Level 3 . | . . . . . . . Level 4 . | . . . . . . . Level 5 . | . . . . . . . High Security . | . . . . . . . Max Security . | . . . . . . . Squads Dispatched 5 | . 4 1 . . . . Investigation . | . . . . . . . Extermination . | . . . . . . . Reinforcement 5 | . 4 1 . . . . Assault . | . . . . . . . Garrison . | . . . . . . . Intercept . | . . . . . . . Searches Triggered . | . . . . . . . Construction Impeded . | . . . . . . . Haulers Reinforced . | . . . . . . . Active Scanning Responses . | . . . . . . . Cargo Convoy Interrupts . | . . . . . . . Stealth | -11 -10 -9 -9 -9 -8 -8 --------- Run | Jun Mat Mat Min Exi Min Mat Distress Signals 6 | . 2 3 . . . 1 Communications Jammed . | . . . . . . . Distress Signals . | . . . . . . . Times Spotted 77 | . 23 36 . . . 18 Peak Tracking Total 6 | . 4 6 . . . 4 Tactical Retreats 1 | . . . . . . 1 Traps | -11 -10 -9 -9 -9 -8 -8 ------- Run | Jun Mat Mat Min Exi Min Mat Traps Triggered 3 | . . 3 . . . . Indirectly . | . . . . . . . Trap Hack Attempts . | . . . . . . . Triggered . | . . . . . . . Disarmed . | . . . . . . . Reprogrammed . | . . . . . . . Reused . | . . . . . . . Traps Extracted . | . . . . . . . Installed . | . . . . . . . Triggered . | . . . . . . . Machines | -11 -10 -9 -9 -9 -8 -8 ---------- Run | Jun Mat Mat Min Exi Min Mat Machines Disabled 4 | . 2 2 . . . . Max in Single Turn 2 | . 2 2 . . . . Machines Repaired . | . . . . . . . Machines Sabotaged . | . . . . . . . Overloaded Fab Kills . | . . . . . . . Hacking | -11 -10 -9 -9 -9 -8 -8 --------- Run | Jun Mat Mat Min Exi Min Mat Machines Accessed 17 | . 5 8 . 1 . 3 Terminals 14 | . 4 7 . . . 3 Fabricators . | . . . . . . . Repair Stations 1 | . 1 . . . . . Recycling Units . | . . . . . . . Scanalyzers 1 | . . 1 . . . . Garrison Access . | . . . . . . . Total Hacks 52 | . 16 26 . 1 . 9 Successful 24 | . 9 11 . 1 . 3 Failed 28 | . 7 15 . . . 6 Catastrophic 5 | . 1 1 . . . 3 Database Lockouts . | . . . . . . . Manual 30 | . 8 14 . 1 . 7 Terminals 45 | . 12 24 . . . 9 Fabricators . | . . . . . . . Repair Stations 4 | . 4 . . . . . Recycling Units . | . . . . . . . Scanalyzers 2 | . . 2 . . . . Garrison Access . | . . . . . . . Terminal Hacks 13 | . 3 7 . 1 . 2 Robot Analysis 2 | . . 2 . . . . Prototype ID Bank 3 | . 1 2 . . . . Terminal Index 1 | . . . . . . 1 Alert Level 2 | . . 1 . . . 1 Unreport Threat 1 | . . 1 . . . . Locate Traps 2 | . 2 . . . . . Registered Components 1 | . . 1 . . . . EX-Prototype ID Bank 1 | . . . . 1 . . Fabricator Hacks . | . . . . . . . Repair Station Hacks 4 | . 4 . . . . . Scan Component 2 | . 2 . . . . . Repair 2 | . 2 . . . . . Recycling Unit Hacks . | . . . . . . . Scanalyzer 2 | . . 2 . . . . Insert Component 1 | . . 1 . . . . Analyze 1 | . . 1 . . . . Garrison Access Hacks . | . . . . . . . Unauthorized Hacks 5 | . 2 2 . . . 1 Terminals 5 | . 2 2 . . . 1 Botnet 5 | . 2 2 . . . 1 Fabricators . | . . . . . . . Repair Stations . | . . . . . . . Recycling Units . | . . . . . . . Scanalyzers . | . . . . . . . Garrison Access . | . . . . . . . Data Cores Recovered 1 | . . 1 . . . . Used . | . . . . . . . Hacking Detections 15 | . 5 7 . . . 3 Full Trace Events . | . . . . . . . Feedback Events . | . . . . . . . Feedback Blocked . | . . . . . . . Robot Schematics Acquired . | . . . . . . . Robots Built . | . . . . . . . Authchips . | . . . . . . . Time . | . . . . . . . Total Robot Build Rating . | . . . . . . . Part Schematics Acquired 1 | . . 1 . . . . Parts Built . | . . . . . . . Authchips . | . . . . . . . Time . | . . . . . . . Total Part Build Rating . | . . . . . . . Parts Repaired 2 | . 2 . . . . . Time 52 | . 52 . . . . . Parts Recycled . | . . . . . . . Recycled Matter . | . . . . . . . Retrieved Matter . | . . . . . . . Retrieved Components . | . . . . . . . Parts Scanalyzed 1 | . . 1 . . . . Part Schematics Acquired 1 | . . 1 . . . . Parts Damaged . | . . . . . . . Bothacking | -11 -10 -9 -9 -9 -8 -8 ------------ Run | Jun Mat Mat Min Exi Min Mat Used RIF Installer . | . . . . . . . Robots Hacked . | . . . . . . . Non-combat . | . . . . . . . Combat . | . . . . . . . Robot Hacks Applied . | . . . . . . . Relay Couplers Released . | . . . . . . . Fabnet Peak Effective % . | . . . . . . . Robots Rewired . | . . . . . . . Allies Hacked . | . . . . . . . Hacks Repelled . | . . . . . . . Allies | -11 -10 -9 -9 -9 -8 -8 -------- Run | Jun Mat Mat Min Exi Min Mat Total Allies 1 | . . . 1 . . . Largest Group 1 | . . . 1 . . . Highest-Rated Group 31 | . . . 31 . . . Highest-Rated Ally 31 | . . . 31 . . . Total Orders . | . . . . . . . Ally Attacks . | . . . . . . . Total Damage . | . . . . . . . Kills . | . . . . . . . Allies Corrupted . | . . . . . . . Allies Melted . | . . . . . . . Intel | -11 -10 -9 -9 -9 -8 -8 ------- Run | Jun Mat Mat Min Exi Min Mat Robot Analysis Total 2 | . . 2 . . . . Derelict Logs Recovered 1 | . . . 1 . . . Drone Launches . | . . . . . . . Drone Recoveries . | . . . . . . . Exploration | -11 -10 -9 -9 -9 -8 -8 ------------- Run | Jun Mat Mat Min Exi Min Mat Turns Passed 4718 | 72 1037 1577 855 336 190 651 Spaces Moved 2513 | 42 502 810 528 206 117 308 Core 5 | 5 . . . . . . Treads 2508 | 37 502 810 528 206 117 308 Legs . | . . . . . . . Wheels . | . . . . . . . Hover . | . . . . . . . Flight . | . . . . . . . Fastest Speed 50 | 50 160 160 160 160 160 155 Average Speed 159 | 146 160 160 160 160 160 159 Slowest Speed 160 | 160 160 160 160 160 160 160 Overloaded Moves . | . . . . . . . Propulsion Burnouts . | . . . . . . . Robots Hopped . | . . . . . . . Cave-ins Triggered . | . . . . . . . Exploration Rate (%) 57 | 4 87 80 100 61 44 25 Regions Visited 6 Branch Regions 3 Pre-discovered Areas 1 | . . . 1 . . . Known Exits Taken . | . . . . . . . Unknown Exits Taken 6 | 1 1 1 1 1 1 . Scrap Searched 2 | . . . 2 . . . Spaces Dug . | . . . . . . . Terrain Destroyed 81 | . 51 30 . . . . Melee . | . . . . . . . Projectile . | . . . . . . . AOE 81 | . 51 30 . . . . Terrain Rammed . | . . . . . . . Walls Destroyed . | . . . . . . . Machines Disabled . | . . . . . . . Actions | -11 -10 -9 -9 -9 -8 -8 --------- Run | Jun Mat Mat Min Exi Min Mat Total 2972 | 49 665 966 536 213 120 423 Wait 206 | . 82 41 4 6 4 69 Move 2507 | 41 501 809 527 205 116 308 Hop . | . . . . . . . Pick Up 31 | 2 10 14 1 1 . 3 Fast Attach 17 | 6 7 4 . . . . Attach 8 | . . 5 . . . 3 Detach 4 | . 4 . . . . . Swap 28 | . 4 17 . . . 7 Drop 32 | . 6 18 . 1 . 7 Fire 131 | . 50 57 . . . 24 Melee . | . . . . . . . Ram . | . . . . . . . Kick . | . . . . . . . Crush 8 | . 1 1 4 . . 2 Escape Stasis . | . . . . . . . Rewire . | . . . . . . . Trap . | . . . . . . . Miscellaneous . | . . . . . . . Route ------- -11/Junkyard -10/Materials (discovered 3 exits: *Mat x3) -9/Materials (discovered 3 exits: *Mat x2 / [*Min]) -9/Mines (discovered 3 exits: *Mat x2 / *Exi) -9/Exiles (discovered 2 exits: [*Min x2]) -8/Mines -8/Materials (discovered 1 exit: [*Sto]) History --------- Turn | Location | Event 7 | -11/Junkyard | Discovered new exit (range 14) 73 | -11/Junkyard | Entered Materials 309 | -10/Materials | Build established: Mutant 409 | -10/Materials | Repaired Lgt. Treads 437 | -10/Materials | Repaired Lgt. Treads 535 | -10/Materials | Discovered new exit (range 15) 673 | -10/Materials | Discovered new exit (range 7) 894 | -10/Materials | Discovered new exit (range 5) 1110 | -10/Materials | Entered another Materials area 1110 | -9/Materials | Evolved 2 slots: Weapon x2 1403 | -9/Materials | Build established: Tank 1689 | -9/Materials | Discovered new exit (range 16) 2082 | -9/Materials | Discovered new exit (range 8) 2678 | -9/Materials | Discovered new exit (range 6) 2687 | -9/Materials | Entered Mines 2743 | -9/Mines | Found a hidden stash of uninstalled traps 2786 | -9/Mines | Learned location of Zion (-6) 2788 | -9/Mines | Discovered new exit (range 12) 2912 | -9/Mines | Build established: Scavenger-Tank 2990 | -9/Mines | Received a Mining Laser from a helpful Derelict 3206 | -9/Mines | Deemed a non-threat by the Exiles lab entrance 3208 | -9/Mines | Discovered new exit (range 5) 3312 | -9/Mines | Discovered new exit (range 15) 3542 | -9/Mines | Entered Exiles 3566 | -9/Exiles | Discovered new exit (range 15) 3582 | -9/Exiles | Met 8R-AWN 3610 | -9/Exiles | Met EX-HEX 3651 | -9/Exiles | Met EX-BIN 3670 | -9/Exiles | Aligned with FarCom system 3672 | -9/Exiles | Given EX-Vault access code 3710 | -9/Exiles | Opened EX-Vault 3719 | -9/Exiles | Found Superbattery 3754 | -9/Exiles | Warned to stay clear of 0b10 Research branches 3777 | -9/Exiles | Exiles lab attacked by MAIN.C 3859 | -9/Exiles | Discovered new exit (range 10) 3878 | -9/Exiles | Left Exiles lab with Superbattery 3878 | -9/Exiles | Entered Mines 4053 | -8/Mines | Discovered new exit (range 5) 4068 | -8/Mines | Entered Materials 4068 | -8/Materials | Evolved 2 slots: Propulsion x1, Utility x1 4069 | -8/Materials | Discovered new exit (range 14) 4186 | -8/Materials | Build established: Scavenger-Skirmisher 4719 | -8/Materials | Self-destructed Last Messages --------------- 04578_ Dropped Lgt. Assault Rifle. 04579_ Acquired 12 matter. 04582_ Dropped Lgt. Assault Rifle. 04595_ Acquired 19 matter. 04601_ Slammed into K-01 Serf. 04602_ Acquired 29 matter. 04612_ Connecting with Terminal... >>Alert(Check) Current Alert Level: Low Security 04655_ Slammed into M-13 Machinist. 04667_ Dropped Lgt. Treads. 04696_ A-02 Transporter destroyed. 04700_ Acquired 43 matter. 04710_ S-10 Pest destroyed. 04714_ Nuclear Reactor explodes. 04714_ S-10 Pest destroyed. 04714_ U-05 Engineer lays Concrete. 04715_ U-05 Engineer builds a Wall. 04716_ Acquired 1 matter. 04719_ U-05 Engineer lays Concrete. Map ----- +----------------------------------------------------+ | ???????????????????# """ #??# #????????? | | ???????????????????#[ """ #??# #????????? | | ???????????????????# #??# ########## | | ???????????????????################## # | | ??????????????????????????# T # # | | ??????????????????????????# """ # # | | ??????????????????????????# """ + # | | ??????????????????????????# """ # =[# | | ??????????????????????????# """ #% =+[ | | ??????????????????????????# """ #=[ # | | ??????????????????????????# ###*# | | ??????????????????????????# #?#*########## | | ??????????????????????????############# #????????? | | ????????????????????????????#! #=#????????? | | ????????????????????????????# = # #????????? | | ????????????????????????????# # #????????? | | ???????????????????????###### # #????????? | | ?????????????????????### ####+##### #????????? | | ?????????????????????# ==] #????????? | | ????????????????????## !] ########+####?????? | | ????????gg??????????# #?#! [ ]#?????? | | ????????????????????# #?# #?????? | | ?????????????????????# ] ### #?????? | | ?????????????????????# = = ## """T""" #?????? | | ???????????????# ### # = [ #############?????? | | ???????????????# t u@= ????????? | | ???????????????# g ???????? | | ???????????????# """ """u """ ????????? | | ???????????????####### """ """ ""????????????? | | ?????????????????????# """ """ ""????????????? | | ?????????????????????# ???????????????? | | ?????????????????????" ???????????????? | | ????????????????????R ???????????????? | | ???????????????????""" ]! ??????????????? | | ???????????????????### ][ ?? ??????????????? | | ????????????????????? !????? ??????????????? | | ????????????????????? ??????? ??????????????? | | ???????????????????? ????????? ???????????????? | | ???????????????????? ?????????????????????????? | | ????????????????????? ???????????????????????????? | | ?????????????????????????????????????????????????? | | ?????????????????????????????????????????????????? | | ?????????????????????????????????????????????????? | | ?????????????????????????????????????????????????? | | ?????????????????????????????????????????????????? | | ?????????????????????????????????????????????????? | | ?????????????????????????????????????????????????? | | ?????????????????????????????????????????????????? | | ?????????????????????????????????????????????????? | | ?????????????????????????????????????????????????? | +----------------------------------------------------+ Best States ------------- Heat Dissipation 31 Energy Generation 12 Energy Capacity 265 Matter Stores 300 Matter Capacity 300 Sight Range 16 Terrain Scan Density 10 Armor Coverage 225 Propulsion Shielding 33 Evasion (%) 40 Targeting Accuracy 5 Recoil Reduction 3 Salvage Targeting 2 Item Schematics ----------------- Imp. Assault Rifle | -9/Materials | Scanalyzed Robot Schematics ------------------ None Fabricated ------------ Nothing Alien Tech Used ----------------- None Achievements -------------- None Challenges ------------ None Game ------ Seed DisruptorBarrageCloak Manual? 0 Play Time 00:42:23 Cumulative 118.2 hours Start 2023.09.28 @ 23:25:03 End 2023.09.29 @ 14:52:27 Sessions 3 Manual Loads 0 Difficulty Rogue Special Mode None Game No. 118 Rogue 118 Adventurer 0 Explorer 0 Win Type - Total 0 Types 0/0/0/0/0/0/0/0/0 Lore% 38 Gallery% 41 Achievement% 32 Wizard Run 0 Options --------- ASCII 1 Keyboard 1 Movement Numpad Keybinds 0 Fullscreen 1 Font 18/SmallcapsGlow Map View 76x50 Tactical HUD 1 Map Filters NONE Filters NONE Steam 1 RUN: e960a4d7-404a-4adb-8c21-2899289540d7